bitfinex/quotes_BTCUSD_20251231
["timestamp","ask_amount","ask_price","bid_price","bid_amount"]
[1767218624544,0.02925299,87873.0,87857.0,0.04544512]
[1767218624753,0.0114,87873.0,87857.0,0.04544512]
[1767218625186,0.01137967,87876.0,87857.0,0.04544512]
[1767218625404,0.0114,87874.0,87857.0,0.04544512]
[1767218625628,0.0114,87874.0,87857.0,0.04455341]
[1767218625985,0.05675922,87874.0,87857.0,0.04455341]
[1767218626186,0.04535922,87873.0,87857.0,0.04455341]
[1767218626796,0.05675922,87873.0,87857.0,0.04455341]
[1767218627430,0.04535922,87873.0,87857.0,0.04455341]
[1767218627587,0.05675922,87873.0,87857.0,0.04455341]
[1767218628202,0.04535922,87873.0,87857.0,0.04455341]
[1767218628420,0.05675922,87873.0,87857.0,0.04455341]
[1767218628624,0.04535922,87872.0,87857.0,0.04455341]
[1767218629210,0.01069383,87871.0,87857.0,0.04455341]
[1767218629493,0.01069383,87870.0,87857.0,0.04455341]
[1767218629734,0.01069383,87869.0,87857.0,0.04455341]
[1767218629937,0.01069383,87868.0,87857.0,0.04455341]
[1767218630142,0.04535922,87872.0,87857.0,0.04455341]
[1767218630143,0.01069383,87867.0,87857.0,0.04455341]
[1767218630293,0.01069383,87866.0,87857.0,0.04455341]
[1767218630486,0.01069383,87865.0,87857.0,0.04455341]
[1767218630708,0.01069383,87864.0,87857.0,0.04455341]
[1767218630908,0.01069383,87863.0,87857.0,0.04455341]
[1767218631118,0.04535922,87872.0,87857.0,0.04455341]
[1767218631318,0.01069429,87871.0,87857.0,0.04455341]
[1767218631557,0.01069429,87870.0,87857.0,0.04455341]
[1767218631896,0.01069429,87869.0,87857.0,0.04455341]
[1767218632172,0.01069429,87868.0,87857.0,0.04455341]
[1767218632497,0.01069429,87867.0,87857.0,0.04455341]
[1767218632698,0.01069429,87866.0,87857.0,0.04455341]
[1767218632842,0.01069429,87865.0,87857.0,0.04455341]
[1767218633041,0.01069429,87864.0,87857.0,0.04455341]
[1767218633393,0.01069429,87863.0,87857.0,0.04455341]
[1767218633605,0.04535922,87872.0,87857.0,0.04455341]
[1767218633737,0.01069457,87871.0,87857.0,0.04455341]
[1767218633941,0.01069457,87870.0,87857.0,0.04455341]
[1767218634143,0.01069457,87869.0,87857.0,0.04455341]
[1767218634377,0.01069457,87868.0,87857.0,0.04455341]
[1767218634580,0.01069457,87867.0,87857.0,0.04455341]
[1767218634732,0.04535922,87872.0,87857.0,0.04403858]
[1767218634938,0.01069458,87871.0,87857.0,0.04403858]
[1767218635141,0.01069458,87870.0,87857.0,0.04403858]
[1767218635486,0.01069458,87869.0,87857.0,0.04403858]
[1767218635648,0.01069458,87868.0,87857.0,0.04403858]
[1767218635855,0.01069458,87867.0,87857.0,0.04403858]
[1767218636055,0.01069458,87866.0,87857.0,0.04352374]
[1767218636286,0.01069458,87865.0,87857.0,0.04352374]
[1767218636491,0.01069458,87864.0,87857.0,0.04352374]
[1767218636642,0.04601225,87874.0,87857.0,0.04352374]
[1767218636643,0.01137967,87876.0,87857.0,0.04812173]
[1767218636842,0.0114,87875.0,87857.0,0.04812173]
[1767218637061,0.02923183,87878.0,87857.0,0.04812173]
[1767218637269,0.0114,87874.0,87857.0,0.04812173]
[1767218638298,0.01785286,87870.0,87857.0,0.04812173]
[1767218638470,0.0114,87874.0,87857.0,0.04812173]
[1767218639201,0.05739243,87872.0,87856.0,0.01010001]
[1767218639407,0.05739256,87871.0,87856.0,0.01010001]
[1767218639700,0.04601225,87871.0,87856.0,0.01010001]
[1767218640019,0.04601225,87871.0,87856.0,0.00958516]
[1767218640311,0.01138031,87871.0,87857.0,0.04812173]
[1767218640649,0.05739256,87871.0,87856.0,0.00958516]
[1767218640863,0.04601225,87871.0,87856.0,0.00958516]
[1767218641512,0.01138057,87869.0,87849.0,0.04100718]
[1767218641845,0.04711125,87856.0,87854.0,0.0114]
[1767218642047,0.04601225,87861.0,87854.0,0.0114]
[1767218642734,0.04601225,87861.0,87854.0,0.010851]
[1767218643232,0.00573931,87860.0,87854.0,0.010851]
[1767218643637,0.05739282,87869.0,87854.0,0.010851]
[1767218643986,0.04601225,87869.0,87854.0,0.010851]
[1767218644187,0.04601225,87869.0,87854.0,0.01033612]
[1767218644846,0.0114,87873.0,87855.0,0.04723016]
[1767218645019,0.0114,87873.0,87854.0,0.01033612]
[1767218645222,0.04601225,87872.0,87854.0,0.01033612]
[1767218645421,0.04601225,87872.0,87854.0,0.0102792]
[1767218648546,0.01069328,87871.0,87854.0,0.0102792]
[1767218648746,0.05670553,87870.0,87854.0,0.0102792]
[1767218649071,0.04601225,87868.0,87854.0,0.0102792]
[1767218649274,0.01069328,87867.0,87854.0,0.0102792]
[1767218649452,0.01069328,87866.0,87854.0,0.0102792]
[1767218649775,0.01069328,87865.0,87854.0,0.0102792]
[1767218650008,0.01069328,87864.0,87854.0,0.0102792]
[1767218650212,0.01069328,87863.0,87854.0,0.0102792]
[1767218650418,0.01069328,87862.0,87854.0,0.0102792]
[1767218650538,0.04601225,87867.0,87854.0,0.0102792]
[1767218650742,0.01643461,87866.0,87854.0,0.0102792]
[1767218650990,0.01069338,87865.0,87854.0,0.0102792]
[1767218651190,0.01069338,87864.0,87854.0,0.0102792]
[1767218651391,0.01069338,87863.0,87854.0,0.0102792]
[1767218651717,0.01014438,87862.0,87854.0,0.00938776]
[1767218651901,0.00574123,87866.0,87854.0,0.00938776]
[1767218652303,0.04601225,87876.0,87855.0,0.04812173]
[1767218652553,0.05741225,87876.0,87855.0,0.04812173]
[1767218652759,0.04601225,87876.0,87855.0,0.04812173]
[1767218655407,0.01785263,87871.0,87855.0,0.04812173]
[1767218663663,0.01069172,87870.0,87855.0,0.04812173]
[1767218663811,0.01069172,87869.0,87855.0,0.04812173]
[1767218664009,0.01785263,87871.0,87855.0,0.04812173]
[1767218664010,0.01069172,87868.0,87855.0,0.04812173]
[1767218664215,0.01069172,87867.0,87855.0,0.04812173]
[1767218664563,0.01069172,87866.0,87855.0,0.04812173]
[1767218664797,0.01069163,87865.0,87855.0,0.04812173]
[1767218665011,0.01785263,87871.0,87855.0,0.04812173]
[1767218665905,0.04647047,87872.0,87855.0,0.04812173]
[1767218676877,0.01069402,87871.0,87855.0,0.04812173]
[1767218677071,0.01069402,87870.0,87855.0,0.04812173]
[1767218677274,0.01069402,87869.0,87855.0,0.04812173]
[1767218677504,0.01069402,87868.0,87855.0,0.04812173]
[1767218677660,0.01069402,87867.0,87855.0,0.04812173]
[1767218677859,0.01069422,87866.0,87855.0,0.04812173]
[1767218678204,0.0001455,87877.0,87857.0,0.04547272]
[1767218690124,0.0106853,87876.0,87857.0,0.04547272]
[1767218690332,0.0106853,87875.0,87857.0,0.04547272]
[1767218690539,0.0106851,87874.0,87857.0,0.04547272]
[1767218690744,0.0001455,87877.0,87857.0,0.04547272]
[1767218690898,0.0001455,87877.0,87859.0,0.04619936]
[1767218692992,0.04950385,87877.0,87859.0,0.04619936]
[1767218700980,0.0001455,87877.0,87859.0,0.04619936]
[1767218702694,0.01068742,87876.0,87859.0,0.04619936]
[1767218702877,0.01068742,87875.0,87859.0,0.04619936]
[1767218703079,0.01068742,87874.0,87861.0,0.04619936]
[1767218703335,0.0001455,87877.0,87861.0,0.04619936]
[1767218704926,0.04950385,87877.0,87861.0,0.02465978]
[1767218708982,0.04946257,87877.0,87861.0,0.02465978]
[1767218710316,0.00010422,87877.0,87861.0,0.02465978]
[1767218710515,0.00010422,87877.0,87863.0,0.04619936]
[1767218710846,0.00010422,87877.0,87862.0,0.0077067]
[1767218710847,0.00010422,87877.0,87865.0,0.04619936]
[1767218711062,0.0001455,87885.0,87865.0,0.04619936]
[1767218715179,0.01069307,87884.0,87865.0,0.04619936]
[1767218715324,0.01069307,87883.0,87865.0,0.04619936]
[1767218715525,0.01069307,87882.0,87867.0,0.04619936]
[1767218715727,0.01069285,87881.0,87867.0,0.04619936]
[1767218715945,0.0001455,87885.0,87867.0,0.04619936]
[1767218718706,0.04950385,87885.0,87867.0,0.04619936]
[1767218727779,0.01069171,87884.0,87867.0,0.04619936]
[1767218728015,0.01069171,87883.0,87868.0,0.01094386]
[1767218728177,0.04950385,87885.0,87868.0,0.01094386]
[1767218728178,0.04889173,87885.0,87868.0,0.01094386]
[1767218737370,0.04889173,87885.0,87867.0,0.04619936]
[1767218740141,0.0106952,87884.0,87867.0,0.04619936]
[1767218740369,0.01069628,87883.0,87867.0,0.04619936]
[1767218740571,0.04889173,87885.0,87867.0,0.04619936]
[1767218741399,0.04889173,87885.0,87868.0,0.0114]
[1767218741541,0.04889173,87885.0,87868.0,0.02249061]
[1767218743882,0.04889173,87885.0,87868.0,0.07141098]
[1767218752514,0.01069625,87884.0,87868.0,0.06001098]
[1767218752681,0.01069625,87883.0,87869.0,0.05773866]
[1767218752878,0.0001455,87885.0,87870.0,0.00996239]
[1767218753979,0.04958755,87885.0,87870.0,0.00996239]
[1767218754203,0.04958755,87885.0,87870.0,0.00980476]
[1767218754728,0.0001455,87885.0,87871.0,0.04633866]
[1767218755858,0.0001455,87885.0,87871.0,0.04644446]
[1767218756010,0.0001455,87885.0,87873.0,0.04633866]
[1767218756207,0.04944205,87884.0,87872.0,0.00984438]
[1767218756412,0.0001455,87885.0,87871.0,0.0001058]
[1767218757626,0.04958755,87885.0,87871.0,8e-07]
[1767218759061,0.06096605,87885.0,87871.0,8e-07]
[1767218759228,0.04958755,87885.0,87871.0,8e-07]
[1767218760576,0.06096605,87885.0,87872.0,0.0114]
[1767218760753,0.04958755,87885.0,87872.0,0.0110622]
[1767218764785,0.01069411,87884.0,87872.0,0.0110622]
[1767218764988,0.01069411,87883.0,87872.0,0.0110622]
[1767218765207,0.01069411,87882.0,87872.0,0.0110622]
[1767218765389,0.01069411,87881.0,87872.0,0.0110622]
[1767218765571,0.01069411,87880.0,87872.0,0.0110622]
[1767218765770,0.01069411,87879.0,87872.0,0.0110622]
[1767218766022,0.01069411,87878.0,87872.0,0.0110622]
[1767218766324,0.01137876,87883.0,87872.0,0.0110622]
[1767218766481,0.06096605,87885.0,87872.0,0.0110622]
[1767218766707,0.10648032,87885.0,87872.0,0.0110622]
[1767218766917,0.04958755,87885.0,87872.0,0.0110622]
[1767218767561,0.06096605,87885.0,87872.0,0.0110622]
[1767218767870,0.04958755,87885.0,87872.0,0.0110622]
[1767218772771,0.04958755,87885.0,87873.0,0.0114]
[1767218774522,0.04958755,87885.0,87874.0,0.0114]
[1767218774659,0.04958755,87885.0,87874.0,0.01150622]
[1767218778126,0.01069407,87884.0,87874.0,0.01150622]
[1767218778328,0.01069407,87883.0,87874.0,0.01150622]
[1767218778581,0.01069407,87882.0,87874.0,0.01150622]
[1767218778786,0.01069407,87881.0,87874.0,0.01150622]
[1767218778908,0.01069407,87880.0,87874.0,0.01150622]
[1767218779109,0.01069407,87879.0,87874.0,0.01150622]
[1767218779314,0.01069402,87878.0,87874.0,0.01150622]
[1767218779513,0.04958755,87885.0,87874.0,0.01150622]
[1767218791510,0.01069469,87884.0,87874.0,0.01150622]
[1767218791726,0.01069469,87883.0,87874.0,0.01150622]
[1767218791985,0.01069469,87882.0,87874.0,0.01150622]
[1767218792196,0.01069469,87881.0,87874.0,0.01150622]
[1767218792407,0.01069469,87880.0,87874.0,0.01150622]
[1767218792631,0.06096605,87885.0,87874.0,0.01150622]
[1767218792836,0.01069612,87884.0,87874.0,0.01150622]
[1767218793070,0.01069612,87883.0,87874.0,0.01150622]
[1767218793259,0.01069612,87882.0,87874.0,0.01150622]
[1767218793604,0.01069612,87881.0,87874.0,0.01150622]
[1767218793780,0.04958755,87885.0,87874.0,0.01150622]
[1767218793781,0.01069611,87880.0,87874.0,0.01150622]
[1767218793986,0.04958755,87885.0,87874.0,0.01150622]
[1767218793987,0.01069611,87879.0,87874.0,0.01150622]
[1767218794309,0.01069611,87878.0,87874.0,0.01150622]
[1767218794537,0.04958755,87885.0,87874.0,0.01150622]
[1767218796626,0.06096605,87885.0,87874.0,0.01150622]
[1767218796927,0.04958755,87885.0,87874.0,0.01150622]
[1767218801283,0.07147331,87885.0,87874.0,0.01150622]
[1767218802373,0.04958755,87885.0,87874.0,0.00010622]
[1767218802793,0.02188576,87884.0,87874.0,0.00010622]
[1767218806353,0.01069486,87883.0,87874.0,0.00010622]
[1767218806699,0.01069486,87882.0,87874.0,0.00010622]
[1767218806909,0.01069486,87881.0,87874.0,0.00010622]
[1767218807131,0.01069486,87880.0,87874.0,0.00010622]
[1767218807262,0.01069486,87879.0,87874.0,0.00010622]
[1767218807465,0.01069478,87878.0,87874.0,0.00010622]
[1767218807665,0.02188576,87884.0,87874.0,0.00010622]
[1767218808304,0.00042934,87875.0,87874.0,0.00010622]
[1767218808516,0.02188576,87884.0,87874.0,0.00010622]
[1767218808663,0.04958755,87885.0,87874.0,0.00010622]
[1767218809074,0.02188576,87884.0,87874.0,0.04542111]
[1767218811426,0.02188576,87884.0,87874.0,0.00010622]
[1767218812017,0.02188576,87884.0,87868.0,0.06322997]
[1767218813213,0.01137889,87882.0,87868.0,0.05182997]
[1767218813449,0.02188576,87884.0,87868.0,0.06322997]
[1767218813614,0.011524,87885.0,87868.0,0.06322997]
[1767218813820,0.03418357,87884.0,87868.0,0.06322997]
[1767218816410,0.03418357,87884.0,87868.0,0.05182997]
[1767218816411,0.01137889,87882.0,87868.0,0.05182997]
[1767218816615,0.01137876,87883.0,87868.0,0.06322997]
[1767218816817,0.011524,87885.0,87868.0,0.06322997]
[1767218817015,0.03418357,87882.0,87868.0,0.06322997]
[1767218819526,0.01069299,87881.0,87868.0,0.06322997]
[1767218819747,0.01069299,87880.0,87869.0,0.0114]
[1767218819962,0.01069299,87879.0,87869.0,0.0114]
[1767218820121,0.01069299,87878.0,87869.0,0.0114]
[1767218820475,0.01137863,87884.0,87869.0,0.0114]
[1767218820636,0.03418357,87883.0,87869.0,0.0114]
[1767218820834,0.04556233,87883.0,87869.0,0.0114]
[1767218821471,0.03418357,87883.0,87869.0,0.0114]
[1767218821673,0.10245633,87883.0,87868.0,0.05182997]
[1767218821875,0.01137889,87882.0,87868.0,0.06322997]
[1767218822220,0.01137876,87883.0,87868.0,0.06322997]
[1767218822428,0.03418357,87882.0,87868.0,0.06322997]
[1767218823185,0.04556246,87882.0,87868.0,0.06322997]
[1767218824634,0.03418357,87882.0,87868.0,0.06322997]
[1767218828969,0.01137993,87874.0,87868.0,0.05182997]
[1767218829271,0.03418357,87882.0,87869.0,0.0114]
[1767218831511,0.04556246,87882.0,87869.0,0.0114]
[1767218832209,0.01069108,87881.0,87869.0,0.01144417]
[1767218832356,0.01069108,87880.0,87869.0,0.01144417]
[1767218832558,0.01069108,87879.0,87869.0,0.01144417]
[1767218832755,0.01069108,87878.0,87869.0,0.01144417]
[1767218833000,0.03418357,87882.0,87869.0,0.01144417]
[1767218833378,0.04556246,87882.0,87869.0,0.01144417]
[1767218833612,0.03418357,87882.0,87869.0,0.01144417]
[1767218841283,0.04556246,87882.0,87869.0,0.01144417]
[1767218841678,0.03418357,87882.0,87869.0,0.01144417]
[1767218841834,0.04556246,87882.0,87869.0,0.01144417]
[1767218842200,0.01137915,87880.0,87869.0,0.01144417]
[1767218842408,0.01137902,87881.0,87869.0,0.01144417]
[1767218843619,0.04556246,87882.0,87869.0,0.01144417]
[1767218843818,0.01137902,87881.0,87869.0,0.01144417]
[1767218843977,0.04556246,87882.0,87869.0,0.01144417]
[1767218845096,0.02207343,87881.0,87869.0,0.01144417]
[1767218845303,0.01069441,87880.0,87869.0,0.01144417]
[1767218845501,0.01069433,87879.0,87869.0,0.01144417]
[1767218845717,0.01069433,87878.0,87869.0,0.01144417]
[1767218845966,0.01069433,87877.0,87869.0,0.01144417]
[1767218846142,0.04556246,87882.0,87869.0,0.01144417]
[1767218846934,0.01137902,87881.0,87869.0,0.01144417]
[1767218849057,0.04556246,87882.0,87869.0,0.01144417]
[1767218850572,0.01137902,87881.0,87869.0,0.01144417]
[1767218850726,0.04556259,87881.0,87869.0,0.01144417]
[1767218851164,0.03418357,87881.0,87869.0,0.01144417]
[1767218851403,0.04556259,87881.0,87869.0,0.01144417]
[1767218851573,0.01137941,87878.0,87869.0,0.01144417]
[1767218851750,0.05689576,87880.0,87869.0,0.01144417]
[1767218851954,0.01137941,87878.0,87869.0,0.01144417]
[1767218852172,0.05689576,87880.0,87869.0,0.01144417]
[1767218852544,0.01137928,87879.0,87869.0,0.01144417]
[1767218853521,0.01137941,87878.0,87869.0,0.01144417]
[1767218853729,0.01137928,87879.0,87869.0,0.01144417]
[1767218855333,0.01137954,87877.0,87869.0,0.01144417]
[1767218855491,0.01137928,87879.0,87869.0,0.01144417]
[1767218855968,0.01137954,87877.0,87869.0,0.01144417]
[1767218856155,0.01137928,87879.0,87869.0,0.01144417]
[1767218856156,0.01137941,87878.0,87869.0,0.01144417]
[1767218856311,0.01137928,87879.0,87869.0,0.01144417]
[1767218856917,0.01137941,87878.0,87869.0,0.01144417]
[1767218857803,0.01069281,87877.0,87869.0,0.01144417]
[1767218858023,0.01069281,87876.0,87869.0,0.01144417]
[1767218858220,0.01137928,87879.0,87869.0,0.01144417]
[1767218859018,0.01137941,87878.0,87869.0,0.01144417]
[1767218859225,0.01137928,87879.0,87869.0,0.01144417]
[1767218859423,0.01137941,87878.0,87869.0,0.01144417]
[1767218859626,0.01137928,87879.0,87869.0,0.01144417]
[1767218859842,0.01137941,87878.0,87869.0,0.01144417]
[1767218860042,0.01137928,87879.0,87869.0,0.01144417]
[1767218861463,0.01137941,87878.0,87869.0,0.01144417]
[1767218863069,0.01137928,87879.0,87869.0,0.01144417]
[1767218865104,0.06827491,87880.0,87869.0,0.01144417]
[1767218865468,0.01137928,87879.0,87869.0,0.01144417]
[1767218865668,0.06827491,87880.0,87869.0,0.01144417]
[1767218866698,0.01137915,87880.0,87869.0,0.01144417]
[1767218867069,0.01137928,87879.0,87869.0,0.01144417]
[1767218869360,0.01137915,87880.0,87869.0,0.01144417]
[1767218869532,0.01137902,87881.0,87869.0,0.01144417]
[1767218869738,0.01137915,87880.0,87869.0,0.01144417]
[1767218869935,0.01137928,87879.0,87869.0,0.01144417]
[1767218870264,0.02207356,87878.0,87869.0,0.01133717]
[1767218870417,0.01069415,87877.0,87869.0,0.01133717]
[1767218871603,0.01069415,87876.0,87869.0,0.01133717]
[1767218871808,0.01069447,87875.0,87869.0,0.01133717]
[1767218872015,0.01137928,87879.0,87869.0,0.01133717]
[1767218873004,0.09034893,87880.0,87869.0,0.01133717]
[1767218873204,0.01137928,87879.0,87869.0,0.01133717]
[1767218873451,0.01137941,87878.0,87869.0,0.01133717]
[1767218873658,0.01137928,87879.0,87869.0,0.01133717]
[1767218875599,0.01137941,87878.0,87869.0,0.01133717]
[1767218875979,0.01137928,87879.0,87869.0,0.01133717]
[1767218876180,0.01137941,87878.0,87869.0,0.01133717]
[1767218876537,0.01137928,87879.0,87869.0,0.01133717]
[1767218876898,0.01137941,87878.0,87869.0,0.01133717]
[1767218877298,0.01137928,87879.0,87869.0,0.01133717]
[1767218877921,0.01137941,87878.0,87869.0,0.01133717]
[1767218878736,0.01137928,87879.0,87869.0,0.01133717]
[1767218878988,0.01137954,87877.0,87869.0,0.01133717]
[1767218879183,0.05823857,87868.0,87855.0,0.0115455]
[1767218879335,0.06961953,87866.0,87855.0,0.0115455]
[1767218879538,0.05823857,87866.0,87855.0,0.0115455]
[1767218879738,0.05823857,87866.0,87852.0,0.0114]
[1767218879739,0.06961979,87864.0,87852.0,0.0114]
[1767218879962,0.05823857,87864.0,87852.0,0.0114]
[1767218884020,0.01068091,87863.0,87852.0,0.0114]
[1767218884226,0.01068091,87862.0,87852.0,0.0114]
[1767218884406,0.05823857,87865.0,87862.0,0.000549]
[1767218884606,0.03419058,87866.0,87863.0,0.05960087]
[1767218884794,0.03419058,87866.0,87852.0,0.0114]
[1767218884795,0.01067874,87865.0,87852.0,0.0114]
[1767218884995,0.01067874,87864.0,87852.0,0.0114]
[1767218885213,0.03419058,87866.0,87852.0,0.07154987]
[1767218885424,0.01067759,87865.0,87852.0,0.07154987]
[1767218885588,0.03419058,87866.0,87852.0,0.07154987]
[1767218885782,0.01067759,87865.0,87852.0,0.07154987]
[1767218885986,0.03419058,87866.0,87852.0,0.07154987]
[1767218886218,0.01067759,87865.0,87852.0,0.07154987]
[1767218886547,0.05823857,87864.0,87852.0,0.0114]
[1767218891418,0.0114,87868.0,87852.0,0.0114]
[1767218891653,0.03419058,87867.0,87852.0,0.0114]
[1767218892841,0.0114,87870.0,87853.0,0.06014987]
[1767218893401,0.01067366,87869.0,87853.0,0.06014987]
[1767218893632,0.0114,87870.0,87854.0,0.06730486]
[1767218893858,0.01067366,87869.0,87854.0,0.06730486]
[1767218894002,0.0114,87870.0,87854.0,0.06730486]
[1767218894208,0.01067366,87869.0,87854.0,0.06730486]
[1767218894401,0.0114,87870.0,87854.0,0.06730486]
[1767218894624,0.01067398,87869.0,87854.0,0.06730486]
[1767218894802,0.0114,87870.0,87854.0,0.06730486]
[1767218895016,0.01067398,87869.0,87854.0,0.06730486]
[1767218895222,0.0114,87870.0,87854.0,0.06730486]
[1767218895423,0.01067436,87869.0,87854.0,0.06730486]
[1767218895606,0.0114,87870.0,87854.0,0.06730486]
[1767218895977,0.01067436,87869.0,87854.0,0.06730486]
[1767218896159,0.0114,87870.0,87854.0,0.06014987]
[1767218896362,0.01067481,87869.0,87854.0,0.06014987]
[1767218896525,0.0114,87870.0,87854.0,0.06014987]
[1767218896722,0.01067481,87869.0,87854.0,0.06014987]
[1767218896946,0.0114,87870.0,87854.0,0.06014987]
[1767218897147,0.01067481,87869.0,87854.0,0.06014987]
[1767218897496,0.05823857,87869.0,87854.0,0.06014987]
[1767218899022,0.06891455,87868.0,87854.0,0.06014987]
[1767218899225,0.05823857,87868.0,87854.0,0.06014987]
[1767218899425,0.058303,87868.0,87854.0,0.06014987]
[1767218902316,0.0106789,87867.0,87854.0,0.06014987]
[1767218902535,0.058303,87868.0,87854.0,0.06014987]
[1767218902734,0.01067923,87867.0,87854.0,0.06014987]
[1767218902946,0.058303,87868.0,87854.0,0.06014987]
[1767218903260,0.01067923,87867.0,87854.0,0.06014987]
[1767218903417,0.058303,87868.0,87854.0,0.06014987]
[1767218903619,0.01068033,87867.0,87854.0,0.06014987]
[1767218903839,0.058303,87868.0,87854.0,0.06014987]
[1767218904036,0.01068033,87867.0,87854.0,0.06014987]
[1767218904239,0.05926473,87867.0,87852.0,0.0114]
[1767218905358,6.443e-05,87868.0,87852.0,0.0114]
[1767218905359,0.05926473,87865.0,87852.0,0.0114]
[1767218908374,0.01069006,87864.0,87852.0,0.0114]
[1767218908580,0.05926473,87865.0,87852.0,0.0114]
[1767218908781,0.01069016,87864.0,87852.0,0.0114]
[1767218908957,0.05926473,87865.0,87852.0,0.01076914]
[1767218909164,0.01069017,87864.0,87852.0,0.01076914]
[1767218909329,6.443e-05,87868.0,87853.0,0.05563736]
[1767218909641,0.01069013,87867.0,87853.0,0.05563736]
[1767218909839,0.01069013,87866.0,87853.0,0.05563736]
[1767218910048,0.01069013,87865.0,87853.0,0.05563736]
[1767218910248,0.01069013,87864.0,87853.0,0.05563736]
[1767218910482,0.05926473,87867.0,87852.0,0.01076914]
[1767218910780,0.01069023,87866.0,87852.0,0.01076914]
[1767218910980,0.01069023,87865.0,87852.0,0.01076914]
[1767218911184,0.01069023,87864.0,87852.0,0.01013829]
[1767218911400,0.05926473,87865.0,87852.0,0.01013829]
[1767218911697,0.01069061,87864.0,87852.0,0.06577565]
[1767218911878,6.443e-05,87868.0,87852.0,0.06577565]
[1767218912072,0.01069061,87867.0,87852.0,0.06577565]
[1767218912295,0.01069061,87866.0,87852.0,0.06577565]
[1767218912460,6.443e-05,87868.0,87852.0,0.06577565]
[1767218912461,0.01069061,87865.0,87852.0,0.06577565]
[1767218912660,0.01069061,87864.0,87852.0,0.06577565]
[1767218912972,6.443e-05,87868.0,87852.0,0.06577565]
[1767218913180,0.01069105,87867.0,87852.0,0.06577565]
[1767218913362,0.01069105,87866.0,87852.0,0.06577565]
[1767218913560,0.01069105,87865.0,87852.0,0.06577565]
[1767218913769,0.01069105,87864.0,87852.0,0.06577565]
[1767218913979,0.01069105,87863.0,87852.0,0.06577565]
[1767218914182,0.05926473,87866.0,87852.0,0.06577565]
[1767218914382,0.06995696,87865.0,87852.0,0.01013829]
[1767218914680,0.01069223,87864.0,87852.0,0.01013829]
[1767218914900,0.01069223,87863.0,87852.0,0.01013829]
[1767218915099,0.05926473,87865.0,87852.0,0.01013829]
[1767218915343,0.01069223,87864.0,87852.0,0.01013829]
[1767218915482,0.01069223,87863.0,87852.0,0.01013829]
[1767218915688,0.05926473,87865.0,87852.0,0.01013829]
[1767218915894,0.0106925,87864.0,87852.0,0.01013829]
[1767218916092,0.0106925,87863.0,87852.0,0.01013829]
[1767218916385,0.05926473,87865.0,87852.0,0.01013829]
[1767218916612,0.0106928,87864.0,87852.0,0.01013829]
[1767218916903,0.0106928,87863.0,87852.0,0.01013829]
[1767218917110,0.05926473,87865.0,87852.0,0.01013829]
[1767218917420,0.0106928,87864.0,87852.0,0.01013829]
[1767218917624,0.0106928,87863.0,87852.0,0.01013829]
[1767218917776,0.05926473,87865.0,87852.0,0.01013829]
[1767218917971,0.01069317,87864.0,87852.0,0.01013829]
[1767218918170,0.01069317,87863.0,87852.0,0.01013829]
[1767218918405,0.05926473,87865.0,87852.0,0.01013829]
[1767218918621,0.01069361,87864.0,87852.0,0.01013829]
[1767218918823,0.01069361,87863.0,87852.0,0.01013829]
[1767218919024,0.05926473,87865.0,87852.0,0.01013829]
[1767218919352,0.01069361,87864.0,87852.0,0.01013829]
[1767218919467,0.01069361,87863.0,87852.0,0.01013829]
[1767218919670,0.05926473,87865.0,87852.0,0.01013829]
[1767218919874,0.01069416,87864.0,87852.0,0.01013829]
[1767218920123,0.01069416,87863.0,87852.0,0.01013829]
[1767218920324,0.05926473,87865.0,87852.0,0.01013829]
[1767218920525,0.01069486,87864.0,87852.0,0.01013829]
[1767218920668,0.01069486,87863.0,87852.0,0.01013829]
[1767218920873,0.05926473,87865.0,87852.0,0.01013829]
[1767218921071,0.05926473,87863.0,87847.0,0.0114]
[1767218921285,0.05926473,87861.0,87847.0,0.0114]
[1767218921499,0.05926473,87859.0,87847.0,0.0114]
[1767218921700,0.01138161,87861.0,87847.0,0.0114]
[1767218921701,0.05926473,87857.0,87847.0,0.0114]
[1767218921912,0.01138161,87861.0,87847.0,0.0114]
[1767218921913,0.05926473,87862.0,87847.0,0.0114]
[1767218922112,0.05926473,87860.0,87847.0,0.0114]
[1767218922311,0.01069493,87859.0,87847.0,0.0114]
[1767218922565,0.01069493,87858.0,87847.0,0.0114]
[1767218922727,0.01069493,87857.0,87847.0,0.0114]
[1767218922913,0.01069305,87856.0,87847.0,0.0114]
[1767218923109,0.07064647,87860.0,87847.0,0.0114]
[1767218923463,0.01069331,87859.0,87847.0,0.0114]
[1767218923663,0.01069331,87858.0,87847.0,0.0114]
[1767218923906,0.01069331,87857.0,87847.0,0.0114]
[1767218924091,0.01069331,87856.0,87847.0,0.0114]
[1767218924293,0.05926473,87860.0,87847.0,0.0114]
[1767218924503,0.01068994,87859.0,87847.0,0.0114]
[1767218924636,0.01068994,87858.0,87847.0,0.0114]
[1767218924824,0.01068994,87857.0,87847.0,0.0114]
[1767218925024,0.05926473,87860.0,87847.0,0.0114]
[1767218925226,0.01068994,87859.0,87847.0,0.0114]
[1767218925421,0.05926473,87860.0,87847.0,0.0114]
[1767218925422,0.01068994,87858.0,87847.0,0.0114]
[1767218925625,0.01068994,87857.0,87847.0,0.0114]
[1767218925941,0.05926473,87860.0,87847.0,0.0114]
[1767218926147,0.01068886,87859.0,87847.0,0.0114]
[1767218926350,0.01068886,87858.0,87847.0,0.0114]
[1767218926541,0.01068886,87857.0,87847.0,0.0114]
[1767218926893,0.05926473,87860.0,87847.0,0.0114]
[1767218927040,0.01068799,87859.0,87847.0,0.0114]
[1767218927238,0.01068799,87859.0,87847.0,0.01076916]
[1767218927239,0.05926473,87857.0,87847.0,0.01076916]
[1767218927983,0.01138174,87860.0,87847.0,0.06640652]
[1767218928182,0.01068734,87859.0,87847.0,0.06640652]
[1767218928379,0.01068734,87858.0,87847.0,0.06640652]
[1767218928609,0.01068734,87857.0,87847.0,0.06640652]
[1767218928760,0.01138161,87861.0,87847.0,0.06640652]
[1767218928963,0.01068663,87860.0,87847.0,0.06640652]
[1767218929184,0.01068663,87859.0,87847.0,0.06640652]
[1767218929385,0.01068663,87858.0,87847.0,0.01076916]
[1767218929645,0.01068663,87857.0,87847.0,0.01076916]
[1767218929772,0.02278135,87863.0,87847.0,0.01076916]
[1767218929973,0.03614929,87861.0,87847.0,0.01076916]
[1767218932988,0.0475309,87861.0,87847.0,0.01076916]
[1767218933188,0.03614929,87861.0,87847.0,0.01076916]
[1767218934777,0.03614929,87861.0,87847.0,0.01013832]
[1767218935540,0.03563117,87861.0,87847.0,0.01013832]
[1767218938152,0.03563117,87861.0,87847.0,0.00950749]
[1767218938708,0.02278135,87863.0,87848.0,0.05522691]
[1767218940557,0.0114,87863.0,87848.0,0.05522691]
[1767218941401,0.02278135,87863.0,87848.0,0.05522691]
[1767218941575,0.01138161,87861.0,87848.0,0.05522691]
[1767218941760,0.01068508,87860.0,87848.0,0.05522691]
[1767218941996,0.01068508,87859.0,87848.0,0.05522691]
[1767218942201,0.01068508,87858.0,87848.0,0.05522691]
[1767218942402,0.01068508,87857.0,87848.0,0.05522691]
[1767218942614,0.01068508,87856.0,87847.0,0.00950749]